bitfinex/quotes_ETHUSD_20250324
["timestamp","ask_amount","ask_price","bid_price","bid_amount"]
[1742824193593,4.79668,2084.8,2084.4,9.66594218]
[1742824193788,3.0,2084.8,2084.4,4.86842218]
[1742824194076,4.79731,2084.5,2084.4,4.86842218]
[1742824194971,4.79711,2084.6,2084.4,4.86842218]
[1742824195563,4.79731,2084.5,2084.4,4.86842218]
[1742824195964,4.79711,2084.6,2084.4,4.86842218]
[1742824196172,4.79686,2084.7,2084.4,4.86842218]
[1742824196561,4.79663,2084.8,2084.4,9.66587218]
[1742824196858,4.79663,2084.8,2084.4,6.3148294]
[1742824197178,4.79692,2084.7,2084.4,6.3148294]
[1742824197958,4.79708,2084.6,2084.4,6.3148294]
[1742824198148,4.7969,2084.7,2084.4,6.3148294]
[1742824198348,4.7969,2084.7,2084.4,11.1123594]
[1742824199246,0.8107,2084.9,2084.4,6.3148294]
[1742824199465,4.79693,2084.7,2084.4,4.86842218]
[1742824199649,4.79693,2084.7,2084.4,9.66596218]
[1742824200270,4.7969,2084.7,2084.4,9.66596218]
[1742824200671,4.79668,2084.8,2084.5,0.6979]
[1742824201081,4.79668,2084.8,2084.6,0.10765545]
[1742824201389,4.79641,2084.9,2084.6,0.10765545]
[1742824201573,4.79621,2085.0,2084.6,5.94092]
[1742824201766,9.59254,2085.0,2084.6,5.94092]
[1742824202161,9.5925,2085.0,2084.6,5.94092]
[1742824202379,4.79621,2085.0,2084.6,5.94092]
[1742824202875,4.79621,2085.0,2084.6,5.94084]
[1742824203071,7.79593,2085.1,2084.7,4.79668]
[1742824203280,4.79621,2085.0,2084.7,4.79668]
[1742824203473,4.79621,2085.0,2084.8,0.10633163]
[1742824203862,5.56849,2084.9,2084.8,0.10633163]
[1742824204184,4.79699,2084.7,2084.5,4.741]
[1742824204399,5.56869,2084.9,2084.8,0.10596825]
[1742824204568,5.56869,2084.9,2084.5,9.53822]
[1742824204772,5.56866,2084.9,2084.5,9.53822]
[1742824204959,5.56866,2084.9,2084.6,0.10692858]
[1742824205379,4.7967,2084.8,2084.6,0.10692858]
[1742824206166,4.79685,2084.7,2084.6,0.10692858]
[1742824206888,4.79667,2084.8,2084.6,0.10692858]
[1742824207189,4.79667,2084.8,2084.7,0.10607279]
[1742824207564,4.79689,2084.7,2084.4,4.79742]
[1742824207960,4.79668,2084.8,2084.4,4.79742]
[1742824208160,9.59349,2084.8,2084.4,4.79742]
[1742824208680,4.79686,2084.7,2084.4,4.79742]
[1742824208885,4.79686,2084.7,2084.3,9.53074]
[1742824210699,4.79686,2084.7,2084.4,4.79749]
[1742824210992,9.59343,2084.8,2084.4,4.79749]
[1742824211299,7.79647,2084.9,2084.6,0.6979]
[1742824211475,5.62773,2085.1,2084.6,0.6979]
[1742824211671,3.0,2085.1,2084.8,9.59306]
[1742824211893,3.0,2085.1,2084.8,6.297816]
[1742824212793,4.79582,2085.2,2084.8,11.094356]
[1742824212993,4.79582,2085.2,2084.8,6.297816]
[1742824213194,4.79582,2085.2,2084.8,6.297786]
[1742824214099,9.59171,2085.2,2084.8,6.297786]
[1742824214396,4.79582,2085.2,2084.8,6.297756]
[1742824214695,4.79548,2085.3,2085.0,4.79608]
[1742824214864,4.79548,2085.3,2085.0,0.6979]
[1742824215070,5.57866,2085.4,2085.0,5.49395]
[1742824215270,4.79549,2085.3,2085.0,0.6979]
[1742824215471,4.7958,2085.2,2084.8,5.49445]
[1742824215698,4.7958,2085.2,2084.8,6.516095]
[1742824216175,4.7958,2085.2,2084.8,1.719545]
[1742824216381,4.79609,2085.1,2084.8,0.6979]
[1742824216585,4.79609,2085.1,2084.8,5.49451]
[1742824216764,4.79643,2084.9,2084.6,0.6979]
[1742824216970,4.79677,2084.8,2084.5,4.716]
[1742824217204,4.79696,2084.7,2084.5,4.716]
[1742824217678,4.79669,2084.8,2084.5,4.716]
[1742824219173,4.79669,2084.8,2084.5,9.51331]
[1742824219503,3.0,2085.0,2084.6,5.60144355]
[1742824219668,3.0,2085.0,2084.7,5.82851436]
[1742824219868,4.79605,2085.1,2084.7,5.82851436]
[1742824220207,7.79625,2085.0,2084.8,0.10533826]
[1742824220721,12.59259,2085.0,2084.6,5.49483]
[1742824221005,3.0,2085.0,2084.6,0.6979]
[1742824221173,4.79664,2084.8,2084.7,0.1057094]
[1742824221372,6.841761,2084.8,2084.7,0.1057094]
[1742824221603,4.79685,2084.7,2084.6,4.71]
[1742824221920,3.0,2084.6,2084.2,0.6979]
[1742824222118,4.79724,2084.6,2084.2,0.6979]
[1742824222425,9.5945,2084.6,2084.2,5.49578]
[1742824222571,4.79724,2084.6,2084.2,6.99653]
[1742824222905,7.79691,2084.7,2084.3,4.79776]
[1742824223101,7.79691,2084.7,2084.3,4.79762]
[1742824223298,3.0,2084.7,2084.4,4.79751]
[1742824223887,4.79606,2085.1,2084.3,4.79762]
[1742824223888,4.79525,2085.4,2084.6,4.79708]
[1742824224085,4.79525,2085.4,2084.7,5.747438]
[1742824224086,4.79597,2085.1,2084.7,5.747438]
[1742824224279,4.79597,2085.1,2084.7,5.747428]
[1742824224483,3.0,2085.2,2084.7,0.950708]
[1742824224714,4.79525,2085.4,2085.0,9.59199]
[1742824224885,4.79525,2085.4,2085.0,9.50797]
[1742824225076,4.79525,2085.4,2085.0,11.008195]
[1742824225315,3.7858,2085.6,2085.1,4.79593]
[1742824225316,8.58059,2085.6,2085.1,4.79593]
[1742824225537,0.7858,2085.6,2085.0,11.008255]
[1742824225807,4.79603,2085.1,2084.8,0.6979]
[1742824226011,4.79603,2085.1,2084.7,5.747388]
[1742824226012,4.79603,2085.1,2084.9,4.717]
[1742824226225,4.79616,2085.0,2084.9,4.717]
[1742824226540,4.79603,2085.1,2084.9,4.717]
[1742824226745,9.59218,2085.1,2084.9,4.717]
[1742824227046,4.79603,2085.1,2084.9,4.717]
[1742824227545,4.79646,2084.9,2084.6,0.6979]
[1742824227699,0.7726,2085.2,2084.6,5.4119]
[1742824227897,4.79671,2084.8,2084.6,4.714]
[1742824228136,4.79687,2084.7,2084.4,0.6979]
[1742824228326,4.79687,2084.7,2084.4,4.713]
[1742824229115,4.79711,2084.6,2084.4,4.713]
[1742824229319,4.79687,2084.7,2084.4,4.713]
[1742824229529,4.79713,2084.6,2084.4,4.713]
[1742824229716,4.79762,2084.4,2084.2,4.719]
[1742824229918,4.79777,2084.3,2084.2,4.719]
[1742824230211,4.79823,2084.1,2083.6,0.6979]
[1742824230445,3.0,2083.9,2083.0,0.6979]
[1742824230639,4.80105,2082.9,2082.7,0.6979]
[1742824230838,4.80105,2082.9,2082.4,4.80203]
[1742824230839,4.80079,2083.0,2082.6,4.80167]
[1742824231064,9.60133,2083.1,2082.6,4.80167]
[1742824231353,4.80081,2083.0,2082.5,5.49962]
[1742824231573,4.80081,2083.0,2082.6,1.023662]
[1742824231574,4.80101,2082.9,2082.6,1.023662]
[1742824231859,3.0,2083.2,2082.7,4.8013]
[1742824232032,3.0,2083.2,2082.9,4.80099]
[1742824232428,3.0,2083.2,2082.8,4.8012]
[1742824232662,3.0,2083.2,2082.9,0.960265]
[1742824232874,3.0,2083.3,2082.9,0.960265]
[1742824233071,4.80031,2083.2,2082.9,0.960265]
[1742824233251,4.80031,2083.2,2082.7,4.80134]
[1742824233453,4.80031,2083.2,2082.7,9.60269]
[1742824233651,7.8001,2083.3,2082.8,4.80121]
[1742824233869,7.8001,2083.3,2082.8,4.8012]
[1742824234071,3.0,2083.3,2082.9,4.80099]
[1742824234261,0.8234,2083.5,2083.1,4.80053]
[1742824234465,3.55,2083.7,2083.1,4.80043]
[1742824234666,5.5531,2083.8,2083.2,4.9148201]
[1742824234667,0.8231,2083.8,2083.2,4.9148201]
[1742824234974,5.56995,2084.1,2083.5,4.7995]
[1742824235281,3.0,2084.0,2083.7,4.79914]
[1742824235443,5.56995,2084.1,2083.7,4.79914]
[1742824235644,4.79851,2084.0,2083.8,0.1123006]
[1742824235849,0.7716,2084.1,2083.8,4.9111806]
[1742824236050,0.7716,2084.1,2083.6,4.79924]
[1742824236254,3.7716,2084.1,2083.9,0.11192914]
[1742824236540,14.699048,2084.1,2084.0,0.11155772]
[1742824236875,4.79768,2084.4,2083.9,4.79857]
[1742824237091,4.79754,2084.4,2084.0,0.11155772]
[1742824237246,3.0,2084.2,2084.0,0.11155772]
[1742824237443,7.7981,2084.2,2083.8,4.79888]
[1742824237671,3.0,2084.2,2084.1,0.11118633]
[1742824237874,3.0,2084.2,2083.8,6.23265]
[1742824237875,4.79752,2084.5,2084.0,4.79834]
[1742824238081,0.8226,2084.6,2084.2,4.79789]
[1742824238285,4.79742,2084.5,2084.1,4.85018633]
[1742824238455,4.79754,2084.4,2084.3,0.11044366]
[1742824238783,4.79777,2084.3,2084.1,4.739]
[1742824238950,9.59574,2084.3,2083.8,4.7988]
[1742824239147,4.79802,2084.2,2083.8,9.5418]
[1742824239379,4.79777,2084.3,2083.8,9.54173]
[1742824239686,4.79758,2084.4,2083.9,4.79849]
[1742824239865,4.79758,2084.4,2083.9,5.822429]
[1742824240197,4.79789,2084.3,2083.9,5.822429]
[1742824240578,4.79789,2084.3,2083.8,9.54188]
[1742824240770,4.79826,2084.1,2083.7,5.49685]
[1742824240967,4.79858,2084.0,2083.6,4.741]
[1742824241179,4.79869,2083.9,2083.6,4.741]
[1742824241489,4.79915,2083.7,2083.2,5.49818]
[1742824241690,4.79978,2083.5,2083.0,4.80075]
[1742824241890,3.0,2083.4,2083.0,4.742]
[1742824242079,4.80009,2083.3,2083.0,4.742]
[1742824242677,4.80045,2083.2,2083.0,4.742]
[1742824243270,5.55659,2083.3,2083.0,4.742]
[1742824243964,3.0,2083.6,2083.1,5.49843]
[1742824244202,4.79931,2083.7,2083.3,4.80004]
[1742824244404,3.0,2083.7,2083.3,4.80004]
[1742824244797,7.7993,2083.7,2083.2,4.80009]
[1742824244989,4.79939,2083.6,2083.2,9.60028]
[1742824245206,4.79939,2083.6,2083.3,1.029818]
[1742824245504,7.79918,2083.7,2083.3,4.79998]
[1742824246001,4.79953,2083.6,2083.2,4.80009]
[1742824246367,7.7492,2083.7,2083.3,4.80007]
[1742824246773,7.7492,2083.7,2083.3,9.59999]
[1742824246991,2.95,2083.7,2083.4,4.79983]
[1742824247187,7.74916,2083.7,2083.3,4.79992]
[1742824247591,4.79953,2083.6,2083.2,4.80024]
[1742824247787,7.74916,2083.7,2083.3,4.79991]
[1742824248201,7.74916,2083.7,2083.3,9.5998]
[1742824248581,7.74916,2083.7,2083.3,9.59977]
[1742824248775,3.0,2083.8,2083.4,4.741]
[1742824248987,7.79903,2083.8,2083.4,14.34046]
[1742824249193,3.0,2083.8,2083.5,4.90540269]
[1742824249395,3.0,2084.0,2083.7,4.79914]
[1742824249595,3.0,2084.0,2083.8,0.10477811]
[1742824249793,3.0,2084.0,2083.7,4.79914]
[1742824250112,3.0,2084.0,2083.8,0.10439078]
[1742824250295,0.7542,2084.1,2083.8,0.10439078]
[1742824250484,3.0,2084.0,2083.7,5.828656]
[1742824250685,3.0,2084.0,2083.9,0.10399511]
[1742824250902,3.0,2084.0,2083.8,0.1039793]
[1742824251127,3.0,2084.0,2083.9,0.10360785]
[1742824251615,4.79857,2084.0,2083.9,0.10360785]
[1742824251809,7.79857,2084.0,2083.6,5.49723]
[1742824251993,3.0,2083.9,2083.6,11.261913]
[1742824252511,3.0,2083.9,2083.7,4.79913]
[1742824252682,5.5525,2084.1,2083.7,4.79913]
[1742824253076,3.0,2084.1,2083.8,4.79887]
[1742824253278,5.61289,2084.4,2084.0,4.79836]
[1742824253474,3.0,2084.3,2084.1,4.79822]
[1742824253678,3.0,2084.3,2084.0,10.014246]
[1742824254781,3.0,2084.1,2083.7,4.79915]
[1742824254982,4.79859,2084.0,2083.6,1.727583]
[1742824255317,9.5982,2083.8,2083.6,4.736]
[1742824255517,4.79909,2083.8,2083.6,4.736]
[1742824255812,4.79895,2083.8,2083.6,4.736]
[1742824256010,3.0,2084.0,2083.6,4.736]
[1742824256213,5.57378,2084.3,2083.8,4.79882]
[1742824256510,5.57378,2084.3,2083.8,4.79883]
[1742824256511,3.0,2084.1,2083.8,4.79883]
[1742824256903,7.79821,2084.2,2083.8,4.79883]
[1742824257106,3.0,2084.1,2083.8,4.79883]
[1742824257285,3.0,2084.1,2083.8,6.301932]
[1742824257486,4.79827,2084.1,2083.8,6.301932]
[1742824257686,7.79827,2084.1,2083.8,6.301932]
[1742824257889,7.79827,2084.1,2083.7,5.49699]
[1742824258410,7.79827,2084.1,2083.7,10.29599]
[1742824258612,4.79872,2083.9,2083.6,4.79931]
[1742824258817,4.79872,2083.9,2083.6,9.53131]
[1742824259508,3.0,2084.1,2083.8,4.79878]
[1742824259709,3.0,2084.1,2083.9,4.7986]
[1742824259909,3.0,2084.1,2084.0,4.734]
[1742824260109,3.0,2084.1,2084.0,9.53246]
[1742824260423,3.0,2084.1,2084.0,4.734]
[1742824261211,4.79788,2084.3,2084.0,6.167144]
[1742824261415,4.79788,2084.3,2084.0,4.734]
[1742824261615,0.7763,2084.3,2083.5,0.6979]
[1742824261798,4.79923,2083.7,2083.4,4.731]
[1742824261995,0.7763,2083.8,2083.5,4.79959]
[1742824262194,5.57524,2083.8,2083.4,9.53062]
[1742824262399,4.7992,2083.7,2083.4,11.033488]
[1742824262609,4.79948,2083.6,2083.2,4.80016]
[1742824262807,4.79915,2083.7,2083.0,26.0729]
[1742824262808,4.79915,2083.7,2083.3,4.731]
[1742824263022,4.80018,2083.3,2083.0,0.6979]
[1742824263329,4.79954,2083.6,2083.0,4.80076]
[1742824263535,4.79973,2083.5,2083.1,4.8005]
[1742824263734,4.79954,2083.6,2083.2,4.80021]
[1742824263913,4.79968,2083.5,2083.1,1.433726]
[1742824264101,3.0,2083.6,2083.3,4.80005]
[1742824264303,9.53153,2084.0,2083.5,4.7996]
[1742824264304,4.79888,2083.9,2083.5,4.7996]
[1742824264503,4.79915,2083.8,2083.4,0.10592528]
[1742824264698,8.62426,2083.7,2083.6,0.10595678]
[1742824264904,7.79938,2083.6,2083.5,0.10632834]
[1742824265133,4.7997,2083.5,2083.3,4.735]
[1742824265534,4.79984,2083.4,2083.3,4.735]
[1742824265745,0.55,2083.5,2082.8,4.80114]
[1742824265936,0.55,2083.5,2082.9,4.741]
[1742824265937,4.80014,2083.3,2082.9,4.741]
[1742824266137,4.80031,2083.2,2082.9,9.54186]
[1742824266504,4.80031,2083.2,2082.9,4.741]
[1742824266714,4.80031,2083.2,2082.8,4.80106]
[1742824267048,4.80066,2083.1,2082.9,4.74]
[1742824267256,4.80033,2083.2,2082.9,9.54097]
[1742824267409,4.80033,2083.2,2082.9,4.74]
[1742824268126,4.80135,2082.8,2082.5,4.749]
[1742824268436,4.80129,2082.8,2082.5,4.748]
[1742824268639,4.801,2082.9,2082.5,9.54971]
[1742824269338,4.80108,2082.9,2082.5,11.054755]
[1742824270236,7.80129,2082.8,2082.5,4.748]
[1742824270445,3.0,2082.8,2082.5,4.748]
[1742824270625,0.7589,2083.0,2082.5,4.748]
[1742824270831,3.0,2083.1,2082.7,5.49914]
[1742824271164,3.0,2083.1,2082.8,4.80116]
[1742824271956,4.80034,2083.2,2082.8,4.80116]
[1742824272262,4.80034,2083.2,2082.7,5.49914]
[1742824272447,4.80077,2083.0,2082.7,5.49914]
[1742824272642,0.7841,2082.9,2082.6,4.80158]
[1742824273019,0.7841,2082.9,2082.5,5.49959]
[1742824273219,7.80128,2082.8,2082.6,4.741]
[1742824273461,3.0,2082.8,2082.6,4.741]
[1742824273761,4.80145,2082.7,2082.6,4.741]
[1742824274065,12.60276,2082.8,2082.6,4.741]
[1742824274219,7.80132,2082.8,2082.6,4.741]
[1742824274645,3.0,2082.8,2082.6,4.741]
[1742824275036,3.0,2082.8,2082.6,9.54268]
[1742824275231,5.62223,2083.1,2082.7,4.80145]
[1742824275432,4.8008,2083.0,2082.6,4.741]
[1742824275636,5.62223,2083.1,2082.5,9.54181]
[1742824275826,4.80088,2083.0,2082.5,9.54181]
[1742824276028,4.80117,2082.9,2082.5,14.34362]
[1742824276231,4.80088,2083.0,2082.6,4.80168]
[1742824276829,4.801,2082.9,2082.5,11.045962]
[1742824277135,4.801,2082.9,2082.5,11.045882]
[1742824277529,4.80083,2083.0,2082.5,11.045882]
[1742824277867,4.80083,2083.0,2082.6,4.80165]
[1742824278172,10.4229,2083.1,2082.6,4.80157]
[1742824278379,4.80113,2082.9,2082.5,6.244152]
[1742824278665,4.80123,2082.8,2082.5,9.54185]
[1742824278868,4.80123,2082.8,2082.5,4.74]
[1742824279163,4.80198,2082.5,2082.1,5.51072]
[1742824279472,4.80198,2082.5,2082.1,10.31338]
[1742824279628,4.80198,2082.5,2082.1,11.276898]
[1742824279972,4.80227,2082.4,2082.1,6.473238]
[1742824280271,4.80227,2082.4,2082.1,11.276068]
[1742824280885,4.80185,2082.6,2082.2,4.80251]
[1742824281080,0.8058,2082.7,2082.1,11.276028]
[1742824281288,4.80206,2082.5,2082.1,11.276028]
[1742824281845,7.80127,2082.8,2082.2,0.04802433]
[1742824282147,3.0,2082.7,2082.4,4.802]
[1742824282363,7.80156,2082.7,2082.3,4.80232]
[1742824282544,4.80076,2083.1,2082.6,4.80148]
[1742824282758,4.80076,2083.1,2082.7,4.80137]
[1742824282759,3.0,2083.0,2082.7,4.80137]
[1742824283139,5.58633,2083.1,2082.7,4.80137]
[1742824283359,5.58633,2083.1,2082.6,9.53648]
[1742824283360,4.80011,2083.3,2082.9,4.80092]
[1742824283560,4.80011,2083.3,2082.9,0.6979]
[1742824283763,4.80011,2083.3,2082.9,10.29958]
[1742824283959,5.57341,2083.4,2083.0,4.80075]
[1742824284269,4.8001,2083.3,2083.0,4.737]
[1742824284468,4.8001,2083.3,2083.0,9.53774]
[1742824284840,5.57341,2083.4,2083.0,11.041218]
[1742824285039,4.79991,2083.4,2083.0,11.041218]
[1742824285266,4.79991,2083.4,2083.0,6.240648]
[1742824285487,4.80068,2083.1,2082.7,0.6979]
[1742824285642,5.56162,2083.2,2082.8,4.80119]
[1742824285975,4.80058,2083.1,2082.7,15.04657]
[1742824286174,3.0,2083.1,2082.8,4.80113]
[1742824286374,3.7613,2083.2,2082.8,4.80113]
[1742824286577,3.7613,2083.2,2082.9,5.825483]
[1742824286779,8.56166,2083.2,2082.9,1.024503]
[1742824287653,0.7613,2083.2,2082.9,5.825473]
[1742824287978,3.0,2083.4,2083.1,4.80042]
[1742824288158,4.80017,2083.3,2083.1,4.747]
[1742824288568,7.79997,2083.4,2083.1,4.747]
[1742824289579,12.60002,2083.4,2083.1,4.747]
[1742824289778,7.79997,2083.4,2083.1,4.747]
[1742824290080,4.8003,2083.2,2083.1,4.747]
[1742824290243,4.80062,2083.1,2082.8,4.743]
[1742824290645,4.80077,2083.0,2082.8,4.743]
[1742824290845,4.80077,2083.0,2082.6,4.80163]
[1742824291052,4.80077,2083.0,2082.7,4.743]
[1742824291463,4.80062,2083.1,2082.7,9.54441]
[1742824291778,3.0,2083.2,2082.8,4.80122]
[1742824291997,3.0,2083.2,2082.9,4.80078]
[1742824292580,3.0,2083.3,2083.0,4.80075]
[1742824292879,5.6126,2083.4,2083.1,5.760583]
[1742824292880,3.0,2083.4,2083.1,5.760583]
[1742824293085,7.79987,2083.4,2083.1,5.699153]
[1742824293386,7.79987,2083.4,2083.1,4.739]
[1742824294292,7.79987,2083.4,2083.2,0.10138768]
[1742824294459,3.0,2083.4,2083.2,0.10138768]
[1742824294657,4.79892,2083.8,2083.3,4.80005]
[1742824294869,5.59401,2084.1,2083.6,4.79921]
[1742824295188,7.79858,2084.0,2083.6,4.79921]
[1742824295484,7.79858,2084.0,2083.7,0.11902953]
[1742824295683,0.7956,2084.1,2083.7,0.11902953]
[1742824295983,4.7977,2084.4,2083.9,4.79857]
[1742824296180,4.79789,2084.3,2084.0,4.741]
[1742824296385,5.34823,2084.1,2084.0,0.0980769]
[1742824296551,9.16023,2084.1,2084.0,0.0980769]
[1742824296755,4.79904,2083.8,2083.6,4.745]
[1742824297154,5.61115,2083.7,2083.3,4.80003]
[1742824297383,4.79961,2083.5,2083.4,4.744]
[1742824297585,5.61117,2083.7,2083.4,4.744]
[1742824297774,3.812,2083.7,2083.4,9.54384]
[1742824297971,3.812,2083.7,2083.5,4.7996]
[1742824297972,3.0,2083.7,2083.5,4.7996]
[1742824298170,3.0,2083.8,2083.5,4.7996]
[1742824298472,3.0,2083.9,2083.5,1.504134]
[1742824298659,3.0,2083.9,2083.7,4.79897]
[1742824298992,0.8253,2084.1,2083.8,9.55288]
[1742824299284,6.1758,2084.4,2084.0,4.79837]
[1742824299586,3.0,2084.4,2084.1,4.79807]
[1742824299890,3.0,2084.4,2084.0,4.79837]
[1742824299891,4.79757,2084.4,2084.0,4.79837]
[1742824300057,4.79739,2084.5,2084.2,5.4519]
[1742824300482,4.79756,2084.4,2084.2,4.754]
[1742824300680,5.56873,2084.5,2084.2,4.754]
[1742824301206,4.79777,2084.3,2084.2,4.754]
[1742824301375,7.79777,2084.3,2084.2,4.754]
[1742824301696,8.34777,2084.3,2084.2,4.754]
[1742824302680,4.79851,2084.0,2083.9,4.749]
[1742824302877,4.79839,2084.1,2083.9,4.749]
[1742824303077,4.79839,2084.1,2083.9,4.8655142]
[1742824303907,4.79839,2084.1,2083.9,0.1165142]
[1742824304505,4.79846,2084.0,2083.9,0.1165142]
[1742824304906,4.79855,2084.0,2083.7,4.744]
[1742824305099,4.79855,2084.0,2083.9,0.11432245]
[1742824305283,4.79855,2084.0,2083.8,0.1147682]
[1742824305477,4.79869,2083.9,2083.7,4.744]
[1742824305675,4.79852,2084.0,2083.7,4.744]
[1742824305879,9.59761,2083.9,2083.7,4.744]
[1742824306207,4.79871,2083.9,2083.7,4.744]
[1742824306415,4.79892,2083.8,2083.7,4.744]
[1742824306604,7.79876,2083.9,2083.7,4.744]
[1742824306814,4.79892,2083.8,2083.7,4.744]
[1742824306976,0.7975,2083.8,2083.3,9.53907]
[1742824307181,0.7975,2083.8,2083.2,4.745]
[1742824307182,4.79996,2083.4,2083.2,4.745]
[1742824307380,4.80024,2083.3,2083.0,4.745]
[1742824307610,4.80024,2083.3,2083.0,9.54573]
[1742824307981,5.5974,2083.4,2083.0,9.54573]
[1742824308313,4.80041,2083.2,2083.0,4.745]
[1742824308517,9.6009,2083.2,2083.0,4.745]
[1742824308701,4.80041,2083.2,2083.0,4.745]
[1742824308903,4.80031,2083.2,2083.0,4.745]
[1742824309289,4.80014,2083.3,2083.1,0.11858544]
[1742824309884,4.8003,2083.2,2083.1,0.11858544]
[1742824310085,4.80013,2083.3,2083.1,0.11858544]
[1742824310916,0.7975,2083.4,2083.1,4.76180473]
[1742824310917,7.79984,2083.4,2083.1,4.76180473]
[1742824311103,7.79984,2083.4,2083.2,0.13466367]
[1742824311410,7.79993,2083.4,2083.2,0.13466367]
[1742824311611,9.138105,2083.4,2083.0,9.54575]
[1742824311840,4.80037,2083.2,2082.9,4.735]
[1742824312127,4.80015,2083.3,2082.9,9.53597]
[1742824312282,9.138085,2083.4,2082.9,9.53581]
[1742824312485,9.138085,2083.4,2083.0,4.80068]
[1742824312711,4.80008,2083.3,2082.9,14.33688]
[1742824313099,4.80046,2083.2,2082.8,10.23001]
[1742824313915,4.80046,2083.2,2082.8,5.4289]
[1742824314120,4.80055,2083.1,2082.8,5.4289]
[1742824314322,4.80046,2083.2,2082.8,5.4289]
[1742824314323,4.80037,2083.2,2082.8,10.2301]
[1742824314615,9.60035,2083.3,2082.9,4.80086]
[1742824314804,4.80076,2083.1,2082.8,4.731]
[1742824315117,9.60152,2083.1,2082.8,4.731]
[1742824315430,4.80076,2083.1,2082.8,4.731]
[1742824315921,4.80076,2083.1,2082.8,9.53219]
[1742824316116,5.61102,2083.2,2082.8,9.53219]
[1742824316325,5.61102,2083.2,2082.8,9.53211]
[1742824316694,0.8107,2083.2,2082.8,9.5321]
[1742824316891,4.80009,2083.3,2082.9,4.80091]
[1742824317112,6.3307825,2083.3,2082.8,14.33321]
[1742824317318,4.80041,2083.2,2082.8,14.33321]
[1742824317510,0.8188,2083.4,2083.1,4.8005]
[1742824317712,5.34974,2083.5,2083.1,9.60094]
[1742824317892,5.34974,2083.5,2083.1,4.80041]
[1742824318318,3.0,2083.4,2083.1,4.80041]
[1742824318626,5.56292,2083.9,2083.4,4.79982]
[1742824318831,4.799,2083.8,2083.5,0.13650769]
[1742824319008,7.79918,2083.7,2083.5,0.13650769]
[1742824319218,4.79958,2083.6,2083.2,4.727]
[1742824319397,7.79961,2083.5,2083.3,0.11009803]
[1742824319596,7.79961,2083.5,2083.2,9.52827]
[1742824319821,7.79942,2083.6,2083.3,0.11009803]
[1742824320030,3.0,2083.7,2083.4,4.79971]
[1742824320340,4.79901,2083.8,2083.5,0.13650769]
[1742824320519,4.79875,2083.9,2083.5,4.93602769]
[1742824320694,4.79893,2083.8,2083.5,4.93602769]
[1742824321121,8.9067807,2083.9,2083.5,4.93602769]
[1742824321629,13.7056607,2083.9,2083.5,4.93602769]
[1742824322018,4.79895,2083.8,2083.5,4.93602769]
[1742824322319,9.15968,2083.6,2083.5,0.13650769]
[1742824322523,11.035466,2083.6,2083.5,0.13650769]
[1742824322826,12.59948,2083.5,2083.2,4.728]
[1742824323008,7.79968,2083.5,2083.3,0.13762254]
[1742824323329,4.80042,2083.2,2082.8,5.49898]
[1742824323520,4.80042,2083.2,2082.9,4.728]
[1742824323924,7.79986,2083.4,2083.0,4.80062]
[1742824324122,3.0,2083.4,2083.1,4.80052]
[1742824324423,3.0,2083.4,2083.2,4.80026]
[1742824324630,3.0,2083.4,2083.3,0.13671604]
[1742824324835,3.0,2083.4,2083.2,0.6979]
[1742824325012,3.0,2083.4,2083.3,0.13671604]
[1742824325201,3.0,2083.4,2083.1,4.80052]
[1742824325515,12.59994,2083.4,2083.2,0.13727355]
[1742824325728,4.80007,2083.3,2083.2,0.13727355]
[1742824325929,13.995974,2083.4,2083.0,4.80064]
[1742824326102,4.80007,2083.3,2083.2,0.10981884]
[1742824326299,4.80007,2083.3,2082.8,4.80121]
[1742824326300,6.1314,2083.2,2083.1,0.11026489]
[1742824326520,4.80062,2083.1,2082.8,4.725]
[1742824327035,3.55,2083.1,2082.5,5.4998]
[1742824327211,4.80133,2082.8,2082.5,5.4249]
[1742824327416,4.80192,2082.5,2082.3,0.6979]
[1742824327616,4.80238,2082.4,2082.1,0.01]
[1742824327822,5.282192,2082.5,2082.1,4.81281]
[1742824328334,4.80215,2082.4,2082.1,4.81281]
[1742824328502,4.80215,2082.4,2082.1,0.01]
[1742824329336,4.80261,2082.2,2082.1,0.01]
[1742824329745,9.388139,2082.2,2082.1,0.01]
[1742824329907,10.197039,2082.2,2082.1,0.01]
[1742824330949,3.0,2082.2,2082.1,0.01]
[1742824331254,9.60488,2082.3,2082.1,0.01]
[1742824331414,9.60493,2082.3,2082.1,0.01]
[1742824331745,4.80238,2082.3,2082.1,0.01]
[1742824331941,4.80218,2082.4,2082.1,0.01]
[1742824332242,4.8021,2082.5,2082.1,10.577114]
[1742824332403,9.60417,2082.5,2082.1,5.774284]
[1742824332742,4.80207,2082.5,2082.1,5.774284]
[1742824333235,7.80173,2082.6,2082.2,5.50031]
[1742824333407,0.8141,2082.9,2082.5,4.80171]
[1742824333608,4.80058,2083.1,2082.6,5.49956]
[1742824333803,9.60133,2083.1,2082.7,4.80137]
[1742824334032,4.80078,2083.0,2082.6,5.49954]
[1742824334226,4.80078,2083.0,2082.6,7.003525]
[1742824334439,4.80102,2082.9,2082.6,2.201945]
[1742824334630,4.80078,2083.0,2082.6,7.003625]